[Event "Titled Tuesday Blitz July 18 Late 2023"]
[White "Adireddy Arjun"]
[Black "Ballester Llagaria, Luis Eduardo"]
[WhiteFideId "25647709"]
[BlackFideId "2297620"]
[WhiteElo "2347"]
[BlackElo "2620"]
[Result "1-0"]
[Round "2"]
[TimeControl "180+2"]
[Date "2023.07.18"]
[WhiteClock "0:00:08"]
[BlackClock "0:00:00"]
[Board "82"]

1. Nf3 {[%clk 0:03:00]}  d5 {[%clk 0:02:59]} 2. g3 {[%clk 0:02:59]}  Bg4 {[%clk 0:02:58]} 3. Bg2 {[%clk 0:03:00]}  c6 {[%clk 0:02:55]} 4. O-O {[%clk 0:03:00]}  Nd7 {[%clk 0:02:55]} 5. d4 {[%clk 0:02:58]}  Ngf6 {[%clk 0:02:55]} 6. h3 {[%clk 0:02:57]}  Bxf3 {[%clk 0:02:51]} 7. Bxf3 {[%clk 0:02:58]}  e5 {[%clk 0:02:51]} 8. dxe5 {[%clk 0:02:58]}  Nxe5 {[%clk 0:02:52]} 9. Bg2 {[%clk 0:02:59]}  Bd6 {[%clk 0:02:51]} 10. b3 {[%clk 0:02:57]}  O-O {[%clk 0:02:50]} 11. Bb2 {[%clk 0:02:57]}  Qe7 {[%clk 0:02:47]} 12. Nd2 {[%clk 0:02:55]}  Rfe8 {[%clk 0:02:47]} 13. e3 {[%clk 0:02:53]}  a5 {[%clk 0:02:46]} 14. a4 {[%clk 0:02:53]}  Rad8 {[%clk 0:02:47]} 15. Qe2 {[%clk 0:02:49]}  h6 {[%clk 0:02:15]} 16. Rad1 {[%clk 0:02:41]}  Ba3 {[%clk 0:02:07]} 17. Ba1 {[%clk 0:02:39]}  Bd6 {[%clk 0:01:54]} 18. Bb2 {[%clk 0:02:37]}  Qc7 {[%clk 0:01:52]} 19. Nf3 {[%clk 0:02:24]}  Ne4 {[%clk 0:01:47]} 20. Nd4 {[%clk 0:01:54]}  Ng6 {[%clk 0:01:22]} 21. Nf3 {[%clk 0:01:45]}  Qe7 {[%clk 0:01:16]} 22. Nd4 {[%clk 0:01:26]}  Qg5 {[%clk 0:01:03]} 23. Nf3 {[%clk 0:01:07]}  Nxg3 {[%clk 0:00:49]} 24. fxg3 {[%clk 0:01:03]}  Qxg3 {[%clk 0:00:44]} 25. Qf2 {[%clk 0:00:56]}  Rxe3 {[%clk 0:00:20]} 26. Qxe3 {[%clk 0:00:33]}  Nf4 {[%clk 0:00:19]} 27. Rf2 {[%clk 0:00:31]}  Nxh3+ {[%clk 0:00:16]} 28. Kf1 {[%clk 0:00:31]}  Nxf2 {[%clk 0:00:10]} 29. Qxf2 {[%clk 0:00:31]}  Qg4 {[%clk 0:00:11]} 30. Qd4 {[%clk 0:00:19]}  Qg6 {[%clk 0:00:09]} 31. Qd3 {[%clk 0:00:20]}  f5 {[%clk 0:00:07]} 32. Re1 {[%clk 0:00:18]}  Rf8 {[%clk 0:00:06]} 33. Re2 {[%clk 0:00:17]}  Bg3 {[%clk 0:00:06]} 34. Ne5 {[%clk 0:00:15]}  Qh5 {[%clk 0:00:05]} 35. Qxg3 {[%clk 0:00:14]}  f4 {[%clk 0:00:05]} 36. Qf3 {[%clk 0:00:13]}  Qf5 {[%clk 0:00:05]} 37. Nd3 {[%clk 0:00:13]}  g5 {[%clk 0:00:05]} 38. Re7 {[%clk 0:00:12]}  Rf7 {[%clk 0:00:03]} 39. Rxf7 {[%clk 0:00:13]}  Kxf7 {[%clk 0:00:04]} 40. Qh5+ {[%clk 0:00:12]}  Ke7 {[%clk 0:00:03]} 41. Qxh6 {[%clk 0:00:11]}  f3 {[%clk 0:00:03]} 42. Bh3 {[%clk 0:00:09]}  g4 {[%clk 0:00:04]} 43. Qh4+ {[%clk 0:00:09]}  Kd6 {[%clk 0:00:03]} 44. Qxg4 {[%clk 0:00:09]}  Qf7 {[%clk 0:00:01]} 45. Qe6+ {[%clk 0:00:07]}  Qxe6 {[%clk 0:00:01]} 46. Bxe6 {[%clk 0:00:08]}  Kxe6 {[%clk 0:00:02]} 47. Nc5+ {[%clk 0:00:07]}  Kd6 {[%clk 0:00:00]} 48. Nxb7+ {[%clk 0:00:08]} 1-0


[Site "https://www.chess.com"]

[Event "Titled Tuesday Blitz July 18 Late 2023"]
[White "Arabidze, Meri"]
[Black "Gomes, Luiz Alexandre de Souza"]
[WhiteFideId "13604040"]
[BlackFideId "2102790"]
[WhiteElo "2620"]
[BlackElo "2336"]
[Result "0-1"]
[Round "2"]
[TimeControl "180+2"]
[Date "2023.07.18"]
[WhiteClock "0:00:34"]
[BlackClock "0:02:03"]
[Board "83"]

1. b3 {[%clk 0:03:00]}  d6 {[%clk 0:02:59]} 2. Bb2 {[%clk 0:03:00]}  e5 {[%clk 0:03:00]} 3. c4 {[%clk 0:03:00]}  g6 {[%clk 0:02:59]} 4. g3 {[%clk 0:02:57]}  Bg7 {[%clk 0:02:59]} 5. Bg2 {[%clk 0:02:58]}  c6 {[%clk 0:03:00]} 6. e3 {[%clk 0:02:58]}  Ne7 {[%clk 0:03:00]} 7. d4 {[%clk 0:02:57]}  O-O {[%clk 0:02:59]} 8. Ne2 {[%clk 0:02:57]}  Bg4 {[%clk 0:02:58]} 9. h3 {[%clk 0:02:55]}  Bxe2 {[%clk 0:02:58]} 10. Qxe2 {[%clk 0:02:53]}  exd4 {[%clk 0:02:59]} 11. exd4 {[%clk 0:02:19]}  Nf5 {[%clk 0:02:57]} 12. O-O {[%clk 0:02:19]}  Nxd4 {[%clk 0:02:56]} 13. Qd2 {[%clk 0:02:14]}  Nf5 {[%clk 0:02:51]} 14. Bxg7 {[%clk 0:02:12]}  Kxg7 {[%clk 0:02:52]} 15. Nc3 {[%clk 0:02:11]}  Na6 {[%clk 0:02:44]} 16. Rad1 {[%clk 0:02:10]}  Re8 {[%clk 0:02:33]} 17. g4 {[%clk 0:01:56]}  Nh4 {[%clk 0:02:32]} 18. Qxd6 {[%clk 0:01:56]}  Qxd6 {[%clk 0:02:33]} 19. Rxd6 {[%clk 0:01:56]}  Nxg2 {[%clk 0:02:33]} 20. Kxg2 {[%clk 0:01:57]}  Rad8 {[%clk 0:02:32]} 21. Rfd1 {[%clk 0:01:57]}  Rxd6 {[%clk 0:02:33]} 22. Rxd6 {[%clk 0:01:58]}  Re7 {[%clk 0:02:33]} 23. g5 {[%clk 0:01:52]}  h6 {[%clk 0:02:25]} 24. h4 {[%clk 0:01:46]}  hxg5 {[%clk 0:02:25]} 25. hxg5 {[%clk 0:01:47]}  Nc5 {[%clk 0:02:23]} 26. Kg3 {[%clk 0:01:45]}  a5 {[%clk 0:02:18]} 27. Kg4 {[%clk 0:01:41]}  Re1 {[%clk 0:02:13]} 28. f4 {[%clk 0:01:00]}  Re3 {[%clk 0:02:09]} 29. Na4 {[%clk 0:00:54]}  Ne4 {[%clk 0:02:03]} 30. Rd7 {[%clk 0:00:34]}  Nf2+ {[%clk 0:02:03]} 31. Kh4 {[%clk 0:00:34]}  Rh3# {[%clk 0:02:03]} 0-1


[Site "https://www.chess.com"]

[Event "Titled Tuesday Blitz July 18 Late 2023"]
[White "Real_taiatai"]
[Black "Zavgorodniy, Sergiy"]
[BlackFideId "14110148"]
[WhiteElo "2326"]
[BlackElo "2619"]
[Result "1-0"]
[Round "2"]
[TimeControl "180+2"]
[Date "2023.07.18"]
[WhiteClock "0:00:30"]
[BlackClock "0:00:14"]
[Board "84"]

1. d4 {[%clk 0:03:00]}  d5 {[%clk 0:02:59]} 2. c4 {[%clk 0:03:01]}  dxc4 {[%clk 0:02:59]} 3. e3 {[%clk 0:03:01]}  Nf6 {[%clk 0:02:59]} 4. Bxc4 {[%clk 0:03:00]}  e6 {[%clk 0:03:00]} 5. Nf3 {[%clk 0:03:00]}  a6 {[%clk 0:03:00]} 6. a4 {[%clk 0:02:59]}  c5 {[%clk 0:03:00]} 7. O-O {[%clk 0:02:59]}  Nc6 {[%clk 0:03:01]} 8. Nc3 {[%clk 0:02:58]}  cxd4 {[%clk 0:03:01]} 9. exd4 {[%clk 0:02:58]}  Nb4 {[%clk 0:03:01]} 10. Bg5 {[%clk 0:02:57]}  Be7 {[%clk 0:03:01]} 11. Re1 {[%clk 0:02:56]}  O-O {[%clk 0:03:01]} 12. Rc1 {[%clk 0:02:54]}  Nfd5 {[%clk 0:03:01]} 13. Bd2 {[%clk 0:02:51]}  b6 {[%clk 0:03:00]} 14. Ne5 {[%clk 0:02:50]}  Bb7 {[%clk 0:03:00]} 15. Qg4 {[%clk 0:02:27]}  Rc8 {[%clk 0:02:39]} 16. Bh6 {[%clk 0:02:19]}  Bf6 {[%clk 0:02:39]} 17. Ne4 {[%clk 0:02:18]}  Kh8 {[%clk 0:02:21]} 18. Bg5 {[%clk 0:01:22]}  Bxg5 {[%clk 0:01:41]} 19. Nxg5 {[%clk 0:01:21]}  Qe7 {[%clk 0:01:25]} 20. Qh5 {[%clk 0:01:16]}  Nf6 {[%clk 0:00:47]} 21. Nexf7+ {[%clk 0:01:09]}  Kg8 {[%clk 0:00:46]} 22. Qh3 {[%clk 0:01:04]}  Rxc4 {[%clk 0:00:32]} 23. Rxc4 {[%clk 0:01:00]}  Rxf7 {[%clk 0:00:32]} 24. Rxe6 {[%clk 0:00:48]}  Qf8 {[%clk 0:00:10]} 25. Nxf7 {[%clk 0:00:21]}  Qxf7 {[%clk 0:00:10]} 26. Rxb4 {[%clk 0:00:17]}  Bc8 {[%clk 0:00:10]} 27. Rbxb6 {[%clk 0:00:17]}  Bxe6 {[%clk 0:00:09]} 28. Qxe6 {[%clk 0:00:17]}  Qxe6 {[%clk 0:00:09]} 29. Rxe6 {[%clk 0:00:18]}  a5 {[%clk 0:00:09]} 30. Ra6 {[%clk 0:00:18]}  Kf7 {[%clk 0:00:07]} 31. Rxa5 {[%clk 0:00:18]}  Ne4 {[%clk 0:00:07]} 32. Ra7+ {[%clk 0:00:17]}  Kf6 {[%clk 0:00:07]} 33. f3 {[%clk 0:00:18]}  Nd6 {[%clk 0:00:07]} 34. Ra6 {[%clk 0:00:19]}  Ke7 {[%clk 0:00:06]} 35. Rxd6 {[%clk 0:00:19]}  Kxd6 {[%clk 0:00:07]} 36. b4 {[%clk 0:00:20]}  Kd5 {[%clk 0:00:07]} 37. Kf2 {[%clk 0:00:21]}  Kxd4 {[%clk 0:00:08]} 38. a5 {[%clk 0:00:22]}  Kd5 {[%clk 0:00:07]} 39. a6 {[%clk 0:00:22]}  Kc6 {[%clk 0:00:08]} 40. b5+ {[%clk 0:00:23]}  Kb6 {[%clk 0:00:08]} 41. Ke3 {[%clk 0:00:23]}  g6 {[%clk 0:00:09]} 42. Kd4 {[%clk 0:00:24]}  h6 {[%clk 0:00:09]} 43. Ke5 {[%clk 0:00:24]}  g5 {[%clk 0:00:10]} 44. Kf5 {[%clk 0:00:25]}  Kxb5 {[%clk 0:00:08]} 45. a7 {[%clk 0:00:25]}  g4 {[%clk 0:00:09]} 46. a8=Q {[%clk 0:00:25]}  g3 {[%clk 0:00:09]} 47. hxg3 {[%clk 0:00:25]}  h5 {[%clk 0:00:09]} 48. Qe4 {[%clk 0:00:26]}  h4 {[%clk 0:00:09]} 49. Qxh4 {[%clk 0:00:26]}  Kc5 {[%clk 0:00:10]} 50. Qe4 {[%clk 0:00:27]}  Kd6 {[%clk 0:00:10]} 51. g4 {[%clk 0:00:27]}  Kd7 {[%clk 0:00:11]} 52. g5 {[%clk 0:00:28]}  Kd6 {[%clk 0:00:11]} 53. g6 {[%clk 0:00:29]}  Kc5 {[%clk 0:00:12]} 54. g7 {[%clk 0:00:30]}  Kd6 {[%clk 0:00:12]} 55. g8=Q {[%clk 0:00:30]}  Kc7 {[%clk 0:00:13]} 56. Qge6 {[%clk 0:00:29]}  Kd8 {[%clk 0:00:13]} 57. Q4d5+ {[%clk 0:00:29]}  Kc7 {[%clk 0:00:13]} 58. Qec6+ {[%clk 0:00:30]}  Kb8 {[%clk 0:00:14]} 59. Qb7# {[%clk 0:00:30]} 1-0


[Site "https://www.chess.com"]

[Event "Titled Tuesday Blitz July 18 Late 2023"]
[White "Thiel, Thomas"]
[Black "Gaitan, Juan Manuel"]
[WhiteFideId "4615964"]
[BlackFideId "121657"]
[WhiteElo "2257"]
[BlackElo "2610"]
[Result "0-1"]
[Round "2"]
[TimeControl "180+2"]
[Date "2023.07.18"]
[WhiteClock "0:00:00"]
[BlackClock "0:00:41"]
[Board "90"]

1. e4 {[%clk 0:03:00]}  e6 {[%clk 0:02:52]} 2. d4 {[%clk 0:03:00]}  d5 {[%clk 0:02:53]} 3. Nc3 {[%clk 0:02:59]}  Nf6 {[%clk 0:02:51]} 4. Bg5 {[%clk 0:02:57]}  Bb4 {[%clk 0:02:48]} 5. e5 {[%clk 0:02:57]}  h6 {[%clk 0:02:49]} 6. Bd2 {[%clk 0:02:56]}  Bxc3 {[%clk 0:02:40]} 7. bxc3 {[%clk 0:02:57]}  Ne4 {[%clk 0:02:41]} 8. Bc1 {[%clk 0:02:56]}  c5 {[%clk 0:02:39]} 9. Ne2 {[%clk 0:02:55]}  Nc6 {[%clk 0:02:36]} 10. f3 {[%clk 0:02:53]}  Ng5 {[%clk 0:02:36]} 11. Ng3 {[%clk 0:02:52]}  Qa5 {[%clk 0:02:33]} 12. Bd2 {[%clk 0:02:49]}  Qa4 {[%clk 0:02:34]} 13. Nh5 {[%clk 0:02:35]}  Kf8 {[%clk 0:02:32]} 14. Qb1 {[%clk 0:02:18]}  a6 {[%clk 0:02:19]} 15. dxc5 {[%clk 0:02:06]}  Nxe5 {[%clk 0:02:17]} 16. Qb3 {[%clk 0:01:50]}  Qh4+ {[%clk 0:02:13]} 17. Ng3 {[%clk 0:01:47]}  Ngxf3+ {[%clk 0:02:05]} 18. gxf3 {[%clk 0:01:45]}  Nxf3+ {[%clk 0:02:06]} 19. Kd1 {[%clk 0:01:42]}  Nxd2 {[%clk 0:02:05]} 20. Kxd2 {[%clk 0:01:38]}  Qf4+ {[%clk 0:02:05]} 21. Kd1 {[%clk 0:01:37]}  e5 {[%clk 0:02:05]} 22. Be2 {[%clk 0:01:34]}  Qe3 {[%clk 0:01:52]} 23. Qxd5 {[%clk 0:01:28]}  Be6 {[%clk 0:01:51]} 24. Qd6+ {[%clk 0:01:23]}  Ke8 {[%clk 0:01:51]} 25. Re1 {[%clk 0:01:00]}  Qxc3 {[%clk 0:01:50]} 26. Bb5+ {[%clk 0:00:37]}  axb5 {[%clk 0:01:50]} 27. Qxe5 {[%clk 0:00:37]}  Rd8+ {[%clk 0:01:17]} 28. Kc1 {[%clk 0:00:37]}  Qd2+ {[%clk 0:01:09]} 29. Kb1 {[%clk 0:00:33]}  Rd5 {[%clk 0:01:00]} 30. Qe3 {[%clk 0:00:30]}  Qb4+ {[%clk 0:00:57]} 31. Kc1 {[%clk 0:00:27]}  Qxc5 {[%clk 0:00:52]} 32. Qxc5 {[%clk 0:00:19]}  Rxc5 {[%clk 0:00:53]} 33. Ne4 {[%clk 0:00:18]}  Rc6 {[%clk 0:00:49]} 34. a4 {[%clk 0:00:16]}  b4 {[%clk 0:00:48]} 35. Kb2 {[%clk 0:00:14]}  Ke7 {[%clk 0:00:47]} 36. Rad1 {[%clk 0:00:10]}  Rhc8 {[%clk 0:00:46]} 37. Rd2 {[%clk 0:00:06]}  Ra8 {[%clk 0:00:42]} 38. Ra1 {[%clk 0:00:00]}  Ra5 {[%clk 0:00:41]} 0-1


[Site "https://www.chess.com"]

[Event "Titled Tuesday Blitz July 18 Late 2023"]
[White "HamedWafa4"]
[Black "Doluhanova, Evgeniya"]
[BlackFideId "14112035"]
[WhiteElo "2605"]
[BlackElo "2253"]
[Result "1-0"]
[Round "2"]
[TimeControl "180+2"]
[Date "2023.07.18"]
[WhiteClock "0:00:11"]
[BlackClock "0:00:07"]
[Board "91"]

1. e4 {[%clk 0:03:00]}  c5 {[%clk 0:02:58]} 2. Nf3 {[%clk 0:02:53]}  d6 {[%clk 0:02:58]} 3. Bb5+ {[%clk 0:02:52]}  Bd7 {[%clk 0:02:57]} 4. Bxd7+ {[%clk 0:02:52]}  Qxd7 {[%clk 0:02:58]} 5. O-O {[%clk 0:02:52]}  Nc6 {[%clk 0:02:58]} 6. c3 {[%clk 0:02:52]}  g6 {[%clk 0:02:58]} 7. d4 {[%clk 0:02:51]}  cxd4 {[%clk 0:02:58]} 8. cxd4 {[%clk 0:02:52]}  Bg7 {[%clk 0:02:58]} 9. Nc3 {[%clk 0:02:51]}  Nf6 {[%clk 0:02:58]} 10. Re1 {[%clk 0:02:46]}  O-O {[%clk 0:02:57]} 11. h3 {[%clk 0:02:46]}  Rac8 {[%clk 0:02:54]} 12. Be3 {[%clk 0:02:42]}  b6 {[%clk 0:02:48]} 13. Rc1 {[%clk 0:02:40]}  Rfd8 {[%clk 0:02:47]} 14. Qd2 {[%clk 0:02:26]}  Na5 {[%clk 0:02:45]} 15. b3 {[%clk 0:02:25]}  Rc7 {[%clk 0:02:37]} 16. Qd3 {[%clk 0:01:44]}  Rdc8 {[%clk 0:02:34]} 17. Ne2 {[%clk 0:01:44]}  e5 {[%clk 0:02:23]} 18. dxe5 {[%clk 0:01:37]}  dxe5 {[%clk 0:02:23]} 19. Rxc7 {[%clk 0:01:29]}  Rxc7 {[%clk 0:02:18]} 20. Qb1 {[%clk 0:01:01]}  Qe6 {[%clk 0:01:55]} 21. Rd1 {[%clk 0:00:57]}  h6 {[%clk 0:01:54]} 22. Ng3 {[%clk 0:00:53]}  Nb7 {[%clk 0:01:46]} 23. Rc1 {[%clk 0:00:35]}  Rxc1+ {[%clk 0:01:41]} 24. Qxc1 {[%clk 0:00:36]}  Nd6 {[%clk 0:01:39]} 25. Bxh6 {[%clk 0:00:23]}  Nfxe4 {[%clk 0:01:34]} 26. Nxe4 {[%clk 0:00:21]}  Nxe4 {[%clk 0:01:33]} 27. Bxg7 {[%clk 0:00:22]}  Kxg7 {[%clk 0:01:33]} 28. Qe3 {[%clk 0:00:23]}  f5 {[%clk 0:01:23]} 29. Qd3 {[%clk 0:00:22]}  Nc5 {[%clk 0:01:12]} 30. Qc3 {[%clk 0:00:19]}  Kf6 {[%clk 0:01:09]} 31. h4 {[%clk 0:00:19]}  Qd5 {[%clk 0:01:04]} 32. Qc1 {[%clk 0:00:18]}  f4 {[%clk 0:00:57]} 33. Ng5 {[%clk 0:00:17]}  Qd4 {[%clk 0:00:48]} 34. Qe1 {[%clk 0:00:15]}  Nd3 {[%clk 0:00:46]} 35. Qe2 {[%clk 0:00:15]}  Kf5 {[%clk 0:00:37]} 36. Nf3 {[%clk 0:00:13]}  Qe4 {[%clk 0:00:35]} 37. Qd2 {[%clk 0:00:13]}  Nc5 {[%clk 0:00:31]} 38. Qd8 {[%clk 0:00:12]}  Ne6 {[%clk 0:00:18]} 39. Qe7 {[%clk 0:00:12]}  Qb1+ {[%clk 0:00:15]} 40. Kh2 {[%clk 0:00:12]}  g5 {[%clk 0:00:09]} 41. Qf7+ {[%clk 0:00:11]}  Ke4 {[%clk 0:00:07]} 42. Qh7+ {[%clk 0:00:11]} 1-0


[Site "https://www.chess.com"]

[Event "Titled Tuesday Blitz July 18 Late 2023"]
[White "Piesik, Piotr"]
[Black "disciplinedbrat"]
[WhiteFideId "1136194"]
[WhiteElo "2605"]
[BlackElo "2229"]
[Result "1-0"]
[Round "2"]
[TimeControl "180+2"]
[Date "2023.07.18"]
[WhiteClock "0:00:37"]
[BlackClock "0:00:11"]
[Board "92"]

1. Nf3 {[%clk 0:03:00]}  Nf6 {[%clk 0:02:59]} 2. g3 {[%clk 0:03:01]}  b6 {[%clk 0:03:00]} 3. Bg2 {[%clk 0:03:01]}  Bb7 {[%clk 0:03:00]} 4. O-O {[%clk 0:03:02]}  g6 {[%clk 0:03:01]} 5. c4 {[%clk 0:03:02]}  Bg7 {[%clk 0:03:01]} 6. Nc3 {[%clk 0:03:03]}  O-O {[%clk 0:03:02]} 7. d3 {[%clk 0:03:04]}  c5 {[%clk 0:03:02]} 8. e4 {[%clk 0:03:04]}  d6 {[%clk 0:03:02]} 9. Ne1 {[%clk 0:03:04]}  Nc6 {[%clk 0:03:03]} 10. f4 {[%clk 0:03:04]}  Nd4 {[%clk 0:03:01]} 11. Be3 {[%clk 0:03:02]}  e5 {[%clk 0:03:00]} 12. f5 {[%clk 0:03:02]}  Qc7 {[%clk 0:02:40]} 13. g4 {[%clk 0:02:55]}  h5 {[%clk 0:02:30]} 14. h3 {[%clk 0:02:49]}  gxf5 {[%clk 0:02:14]} 15. g5 {[%clk 0:02:35]}  Ng4 {[%clk 0:01:48]} 16. hxg4 {[%clk 0:02:33]}  fxg4 {[%clk 0:01:49]} 17. Nd5 {[%clk 0:02:18]}  Bxd5 {[%clk 0:01:49]} 18. exd5 {[%clk 0:02:16]}  Qe7 {[%clk 0:01:49]} 19. Be4 {[%clk 0:02:12]}  f5 {[%clk 0:01:47]} 20. gxf6 {[%clk 0:02:12]}  Rxf6 {[%clk 0:01:46]} 21. Rxf6 {[%clk 0:02:09]}  Qxf6 {[%clk 0:01:47]} 22. Bxd4 {[%clk 0:02:05]}  exd4 {[%clk 0:01:40]} 23. Ng2 {[%clk 0:02:04]}  Rf8 {[%clk 0:01:36]} 24. Qe2 {[%clk 0:02:02]}  Qg5 {[%clk 0:01:13]} 25. Rf1 {[%clk 0:02:00]}  Bf6 {[%clk 0:01:12]} 26. Bf5 {[%clk 0:01:51]}  Be5 {[%clk 0:01:01]} 27. Be6+ {[%clk 0:01:51]}  Kg7 {[%clk 0:01:01]} 28. Rxf8 {[%clk 0:01:51]}  Kxf8 {[%clk 0:01:01]} 29. Qf2+ {[%clk 0:01:50]}  Bf6 {[%clk 0:01:00]} 30. Qf4 {[%clk 0:01:46]}  Ke7 {[%clk 0:00:52]} 31. Kf2 {[%clk 0:01:21]}  Qg7 {[%clk 0:00:47]} 32. Qf5 {[%clk 0:01:18]}  g3+ {[%clk 0:00:43]} 33. Kf3 {[%clk 0:01:17]}  h4 {[%clk 0:00:43]} 34. Nf4 {[%clk 0:01:08]}  g2 {[%clk 0:00:33]} 35. Ng6+ {[%clk 0:01:07]}  Kd8 {[%clk 0:00:30]} 36. Kxg2 {[%clk 0:01:07]}  h3+ {[%clk 0:00:27]} 37. Kxh3 {[%clk 0:01:04]}  Qh6+ {[%clk 0:00:27]} 38. Kg4 {[%clk 0:01:01]}  Be5 {[%clk 0:00:22]} 39. Qg5+ {[%clk 0:00:59]}  Qxg5+ {[%clk 0:00:19]} 40. Kxg5 {[%clk 0:01:00]}  Bg3 {[%clk 0:00:17]} 41. Kf5 {[%clk 0:00:59]}  Be1 {[%clk 0:00:17]} 42. Kf6 {[%clk 0:00:50]}  Bg3 {[%clk 0:00:17]} 43. Bf5 {[%clk 0:00:49]}  a6 {[%clk 0:00:16]} 44. Ke6 {[%clk 0:00:49]}  b5 {[%clk 0:00:16]} 45. Nh8 {[%clk 0:00:48]}  bxc4 {[%clk 0:00:17]} 46. dxc4 {[%clk 0:00:48]}  Kc7 {[%clk 0:00:15]} 47. Nf7 {[%clk 0:00:48]}  Bh2 {[%clk 0:00:14]} 48. Bd3 {[%clk 0:00:42]}  a5 {[%clk 0:00:13]} 49. Ke7 {[%clk 0:00:40]}  Bg3 {[%clk 0:00:13]} 50. Nh6 {[%clk 0:00:38]}  Bh4+ {[%clk 0:00:13]} 51. Ke6 {[%clk 0:00:38]}  Bg3 {[%clk 0:00:12]} 52. Nf5 {[%clk 0:00:38]}  Bh2 {[%clk 0:00:13]} 53. Ng7 {[%clk 0:00:38]}  Be5 {[%clk 0:00:13]} 54. Ne8+ {[%clk 0:00:37]}  Kd8 {[%clk 0:00:11]} 55. Nxd6 {[%clk 0:00:38]}  Bf4 {[%clk 0:00:10]} 56. Nb7+ {[%clk 0:00:37]}  Kc7 {[%clk 0:00:10]} 57. Nxc5 {[%clk 0:00:37]}  Kb6 {[%clk 0:00:11]} 1-0


[Site "https://www.chess.com"]

[Event "Titled Tuesday Blitz July 18 Late 2023"]
[White "Bortnyk, Mykola"]
[Black "Keleberda, Tymur"]
[WhiteFideId "14120836"]
[BlackFideId "14174294"]
[WhiteElo "3034"]
[BlackElo "2505"]
[Result "1-0"]
[Round "2"]
[TimeControl "180+2"]
[Date "2023.07.18"]
[WhiteClock "0:01:32"]
[BlackClock "0:00:27"]
[Board "96"]

1. e4 {[%clk 0:03:00]}  c5 {[%clk 0:02:58]} 2. c3 {[%clk 0:03:01]}  d5 {[%clk 0:02:57]} 3. exd5 {[%clk 0:03:02]}  Qxd5 {[%clk 0:02:58]} 4. d4 {[%clk 0:03:02]}  cxd4 {[%clk 0:02:58]} 5. cxd4 {[%clk 0:03:02]}  Nc6 {[%clk 0:02:56]} 6. Nf3 {[%clk 0:03:02]}  e5 {[%clk 0:02:56]} 7. Nc3 {[%clk 0:02:57]}  Bb4 {[%clk 0:02:56]} 8. dxe5 {[%clk 0:02:53]}  Qxd1+ {[%clk 0:02:53]} 9. Kxd1 {[%clk 0:02:54]}  Bxc3 {[%clk 0:02:50]} 10. bxc3 {[%clk 0:02:54]}  Bg4 {[%clk 0:02:51]} 11. Kc2 {[%clk 0:02:49]}  Nge7 {[%clk 0:02:32]} 12. Rb1 {[%clk 0:02:46]}  Bf5+ {[%clk 0:02:28]} 13. Bd3 {[%clk 0:02:46]}  Bxd3+ {[%clk 0:02:28]} 14. Kxd3 {[%clk 0:02:47]}  O-O-O+ {[%clk 0:02:29]} 15. Kc2 {[%clk 0:02:43]}  Ng6 {[%clk 0:02:29]} 16. Re1 {[%clk 0:02:32]}  Rhe8 {[%clk 0:02:27]} 17. Rb5 {[%clk 0:02:32]}  Kc7 {[%clk 0:02:11]} 18. Ba3 {[%clk 0:02:25]}  a6 {[%clk 0:02:00]} 19. Bd6+ {[%clk 0:02:24]}  Kc8 {[%clk 0:01:59]} 20. Rc5 {[%clk 0:02:18]}  f6 {[%clk 0:01:59]} 21. Re3 {[%clk 0:02:01]}  fxe5 {[%clk 0:01:38]} 22. Bxe5 {[%clk 0:02:02]}  Nxe5 {[%clk 0:01:18]} 23. Nxe5 {[%clk 0:02:03]}  Kc7 {[%clk 0:01:15]} 24. Nxc6 {[%clk 0:02:00]}  bxc6 {[%clk 0:01:16]} 25. Rce5 {[%clk 0:01:54]}  Rxe5 {[%clk 0:01:12]} 26. Rxe5 {[%clk 0:01:55]}  Rd7 {[%clk 0:01:12]} 27. a4 {[%clk 0:01:54]}  Kd6 {[%clk 0:01:05]} 28. Ra5 {[%clk 0:01:51]}  Ra7 {[%clk 0:01:05]} 29. Kd3 {[%clk 0:01:50]}  g6 {[%clk 0:01:00]} 30. h4 {[%clk 0:01:48]}  Kc7 {[%clk 0:00:57]} 31. h5 {[%clk 0:01:46]}  Kb6 {[%clk 0:00:46]} 32. Rg5 {[%clk 0:01:45]}  gxh5 {[%clk 0:00:43]} 33. a5+ {[%clk 0:01:46]}  Kb7 {[%clk 0:00:42]} 34. Rg7+ {[%clk 0:01:43]}  Ka8 {[%clk 0:00:42]} 35. Rxa7+ {[%clk 0:01:44]}  Kxa7 {[%clk 0:00:43]} 36. Kd4 {[%clk 0:01:37]}  Kb8 {[%clk 0:00:41]} 37. Ke5 {[%clk 0:01:36]}  Kc7 {[%clk 0:00:39]} 38. Ke6 {[%clk 0:01:34]}  h4 {[%clk 0:00:37]} 39. c4 {[%clk 0:01:33]}  h6 {[%clk 0:00:27]} 40. Ke7 {[%clk 0:01:32]} 1-0


[Site "https://www.chess.com"]

[Event "Titled Tuesday Blitz July 18 Late 2023"]
[White "Liu, Casper"]
[Black "Meshkovs, Nikita"]
[WhiteFideId "1454153"]
[BlackFideId "11602740"]
[WhiteElo "2471"]
[BlackElo "2736"]
[Result "0-1"]
[Round "2"]
[TimeControl "180+2"]
[Date "2023.07.18"]
[WhiteClock "0:01:29"]
[BlackClock "0:01:26"]
[Board "98"]

1. e4 {[%clk 0:03:00]}  e5 {[%clk 0:02:58]} 2. d4 {[%clk 0:03:01]}  exd4 {[%clk 0:02:58]} 3. Qxd4 {[%clk 0:03:02]}  Nc6 {[%clk 0:02:57]} 4. Qe3 {[%clk 0:03:02]}  Nf6 {[%clk 0:02:55]} 5. Nc3 {[%clk 0:03:03]}  Bb4 {[%clk 0:02:55]} 6. Bd2 {[%clk 0:03:04]}  O-O {[%clk 0:02:55]} 7. O-O-O {[%clk 0:03:04]}  Re8 {[%clk 0:02:53]} 8. Qf4 {[%clk 0:03:02]}  d6 {[%clk 0:02:42]} 9. f3 {[%clk 0:03:01]}  Be6 {[%clk 0:02:34]} 10. h4 {[%clk 0:03:00]}  Nd7 {[%clk 0:02:14]} 11. Nh3 {[%clk 0:02:47]}  Bxh3 {[%clk 0:02:07]} 12. Rxh3 {[%clk 0:02:44]}  Nde5 {[%clk 0:02:03]} 13. h5 {[%clk 0:02:38]}  h6 {[%clk 0:02:02]} 14. Rg3 {[%clk 0:02:31]}  Kh8 {[%clk 0:01:58]} 15. Rxg7 {[%clk 0:01:59]}  Kxg7 {[%clk 0:01:57]} 16. Qxh6+ {[%clk 0:02:00]}  Kg8 {[%clk 0:01:57]} 17. Bg5 {[%clk 0:02:01]}  Re6 {[%clk 0:01:52]} 18. Bxd8 {[%clk 0:01:46]}  Rxh6 {[%clk 0:01:51]} 19. Bxc7 {[%clk 0:01:45]}  Bxc3 {[%clk 0:01:40]} 20. bxc3 {[%clk 0:01:46]}  Rc8 {[%clk 0:01:38]} 21. Bxd6 {[%clk 0:01:46]}  Rd8 {[%clk 0:01:39]} 22. Bxe5 {[%clk 0:01:34]}  Rxd1+ {[%clk 0:01:39]} 23. Kxd1 {[%clk 0:01:35]}  Nxe5 {[%clk 0:01:39]} 24. f4 {[%clk 0:01:36]}  Ng4 {[%clk 0:01:34]} 25. Be2 {[%clk 0:01:35]}  Nf2+ {[%clk 0:01:34]} 26. Kd2 {[%clk 0:01:35]}  Nxe4+ {[%clk 0:01:35]} 27. Ke3 {[%clk 0:01:36]}  Nxc3 {[%clk 0:01:34]} 28. Bf3 {[%clk 0:01:34]}  Nxa2 {[%clk 0:01:34]} 29. g4 {[%clk 0:01:33]}  Re6+ {[%clk 0:01:32]} 30. Kd4 {[%clk 0:01:33]}  Nb4 {[%clk 0:01:30]} 31. c3 {[%clk 0:01:33]}  Nc6+ {[%clk 0:01:31]} 32. Kd3 {[%clk 0:01:32]}  a5 {[%clk 0:01:29]} 33. Bd5 {[%clk 0:01:32]}  Rd6 {[%clk 0:01:28]} 34. Ke4 {[%clk 0:01:32]}  a4 {[%clk 0:01:27]} 35. g5 {[%clk 0:01:31]}  Rxd5 {[%clk 0:01:27]} 36. Kxd5 {[%clk 0:01:29]}  a3 {[%clk 0:01:26]} 0-1


[Site "https://www.chess.com"]